bitfinex-derivatives/quotes_BNBF0:USTF0_20241225
["timestamp","ask_amount","ask_price","bid_price","bid_amount"]
[1735160652934,0.28437366,703.3,701.78,0.28498959]
[1735160653140,0.26168337,703.29,701.78,0.28498959]
[1735160653342,0.28438175,703.28,701.78,0.28498959]
[1735160653542,0.26168337,703.27,701.78,0.28498959]
[1735160654139,0.28438984,703.26,701.78,0.28498959]
[1735160656640,0.28438984,703.26,701.79,1.06518007]
[1735160657641,1.05740999,703.85,701.92,1.06518007]
[1735160658141,0.28415548,703.84,701.92,1.06518007]
[1735160658743,0.28415548,703.84,701.78,0.28498959]
[1735160660148,0.26153167,703.83,701.78,0.28498959]
[1735160660543,0.2615533,703.82,701.78,0.28498959]
[1735160660746,0.2615533,703.81,701.78,0.28498959]
[1735160660948,0.26159226,703.8,701.78,0.28498959]
[1735160661246,0.26159226,703.79,701.78,0.28498959]
[1735160661445,0.26159226,703.83,701.78,0.28498959]
[1735160661644,0.26159226,703.82,701.78,0.28498959]
[1735160661842,0.26159226,703.81,701.78,0.28498959]
[1735160662042,0.26159226,703.8,701.78,0.28498959]
[1735160662240,0.28415548,703.84,701.78,0.28498959]
[1735160662241,0.26159226,703.83,701.78,0.28498959]
[1735160662446,0.26159226,703.82,701.78,0.28498959]
[1735160662639,0.26159226,703.81,701.78,0.28498959]
[1735160662846,0.26159226,703.8,701.78,0.28498959]
[1735160663146,0.26159226,703.79,701.78,0.28498959]
[1735160663346,0.28415548,703.84,701.78,0.28498959]
[1735160663646,0.2616442,703.83,701.78,0.28498959]
[1735160666745,0.28415548,703.84,701.78,0.28498959]
[1735160666946,0.26166162,703.83,701.78,0.28498959]
[1735160667541,1.05740999,703.8,701.78,0.28498959]
[1735160667745,0.26166162,703.79,701.78,0.28498959]
[1735160668842,0.28415548,703.84,701.78,0.28498959]
[1735160668843,0.2616086,703.78,701.78,0.28498959]
[1735160669043,0.2616086,703.77,701.78,0.28498959]
[1735160669346,0.2616086,703.76,701.78,0.28498959]
[1735160669649,0.2616086,703.75,701.78,0.28498959]
[1735160669848,0.2616086,703.74,701.78,0.28498959]
[1735160670045,0.2616086,703.73,701.78,0.28498959]
[1735160670249,0.2616086,703.72,701.78,0.28498959]
[1735160670446,0.2616086,703.71,701.78,0.28498959]
[1735160670645,0.2616086,703.7,701.78,0.28498959]
[1735160670849,0.2616086,703.69,701.78,0.28498959]
[1735160671045,0.2616086,703.68,701.78,0.28498959]
[1735160671249,0.2616086,703.67,701.78,0.28498959]
[1735160671444,0.28415548,703.84,701.78,0.28498959]
[1735160671445,0.26160372,703.66,701.78,0.28498959]
[1735160671646,0.26160372,703.78,701.78,0.28498959]
[1735160671847,0.26160372,703.77,701.78,0.28498959]
[1735160672049,0.26160372,703.76,701.78,0.28498959]
[1735160672354,1.05740999,703.74,701.78,0.28498959]
[1735160672551,0.26160372,703.73,701.78,0.28498959]
[1735160673648,0.26160372,703.72,701.78,0.28498959]
[1735160673848,0.26160372,703.82,701.78,0.28498959]
[1735160674050,1.05740999,703.83,701.78,0.28498959]
[1735160674350,0.28415548,703.84,701.78,0.28498959]
[1735160674351,0.26156112,703.82,701.78,0.28498959]
[1735160674555,0.26156112,703.81,701.78,0.28498959]
[1735160674756,0.26156112,703.83,701.78,0.28498959]
[1735160674960,0.26157278,703.8,701.78,0.28498959]
[1735160675154,0.26157278,703.79,701.78,0.28498959]
[1735160675358,0.26157278,703.78,701.78,0.28498959]
[1735160675661,0.26157278,703.77,701.79,1.06518007]
[1735160675961,0.26157278,703.76,701.79,1.06518007]
[1735160676261,0.26157278,703.75,701.79,1.06518007]
[1735160676459,0.26157278,703.74,701.79,1.06518007]
[1735160676656,0.26157278,703.73,701.78,0.28498959]
[1735160676859,0.26160275,703.72,701.78,0.28498959]
[1735160677058,0.26160275,703.71,701.78,0.28498959]
[1735160677260,0.26160275,703.7,701.78,0.28498959]
[1735160677457,0.26160275,703.69,701.78,0.28498959]
[1735160677657,0.26160275,703.68,701.78,0.28498959]
[1735160677960,0.26160275,703.67,701.78,0.28498959]
[1735160678262,0.26160275,703.66,701.78,0.28498959]
[1735160678456,0.26160275,703.65,701.78,0.28498959]
[1735160678659,0.26160275,703.64,701.78,0.28498959]
[1735160678856,0.26160275,703.63,701.78,0.28498959]
[1735160679055,0.26160275,703.62,701.78,0.28498959]
[1735160679256,0.26160275,703.61,701.78,0.28498959]
[1735160679462,1.05740999,703.77,701.78,0.28498959]
[1735160679662,0.26160348,703.76,701.78,0.28498959]
[1735160679860,0.26160348,703.75,701.78,0.28498959]
[1735160680060,0.26160348,703.74,701.78,0.28498959]
[1735160680258,0.26160348,703.73,701.78,0.28498959]
[1735160680457,0.26160348,703.72,701.78,0.28498959]
[1735160680658,0.26160348,703.71,701.78,0.28498959]
[1735160680862,0.26160348,703.7,701.78,0.28498959]
[1735160681059,0.26160348,703.69,701.78,0.28498959]
[1735160681262,0.26160348,703.68,701.78,0.28498959]
[1735160681463,0.26160348,703.67,701.78,0.28498959]
[1735160681661,0.26160348,703.66,701.78,0.28498959]
[1735160681967,0.26160348,703.65,701.78,0.28498959]
[1735160682167,0.28415548,703.84,701.78,0.28498959]
[1735160682362,0.26162301,703.64,701.78,0.28498959]
[1735160682561,0.26162301,703.63,701.78,0.28498959]
[1735160682865,0.26162301,703.62,701.78,0.28498959]
[1735160683065,0.26161597,703.61,701.78,0.28498959]
[1735160683262,0.26161597,703.6,701.78,0.28498959]
[1735160683469,0.26161597,703.59,701.78,0.28498959]
[1735160683660,0.28415548,703.84,701.78,0.28498959]
[1735160683661,1.31902596,703.83,701.78,0.28498959]
[1735160683862,0.26161597,703.82,701.78,0.28498959]
[1735160684662,0.26161597,703.81,701.78,0.28498959]
[1735160684865,0.26161597,703.8,701.78,0.28498959]
[1735160685168,0.26161597,703.79,701.78,0.28498959]
[1735160685363,0.26161597,703.78,701.78,0.28498959]
[1735160685567,0.26161597,703.77,701.78,0.28498959]
[1735160685762,0.26161597,703.76,701.78,0.28498959]
[1735160685963,0.26161597,703.75,701.78,0.28498959]
[1735160686164,0.26161597,703.74,701.78,0.28498959]
[1735160686367,0.26161597,703.73,701.78,0.28498959]
[1735160686569,0.26161597,703.72,701.78,0.28498959]
[1735160686770,0.26161597,703.71,701.78,0.28498959]
[1735160686970,0.26161597,703.7,701.78,0.28498959]
[1735160687165,0.26161597,703.69,701.78,0.28498959]
[1735160687470,0.26161597,703.68,701.78,0.28498959]
[1735160687667,1.05740999,703.83,701.78,0.28498959]
[1735160687970,0.28422817,703.66,701.78,0.28498959]
[1735160688273,0.26161674,703.65,701.78,0.28498959]
[1735160688471,0.28424029,703.63,701.78,0.28498959]
[1735160688670,0.26161674,703.62,701.78,0.28498959]
[1735160689675,1.31902673,703.62,701.78,0.28498959]
[1735160689871,0.26161674,703.61,701.78,0.28498959]
[1735160690270,1.05740999,703.62,701.78,0.28498959]
[1735160690567,0.26171496,703.61,701.78,0.28498959]
[1735160690771,0.26171496,703.62,701.78,0.28498959]
[1735160690969,0.26171496,703.61,701.78,0.28498959]
[1735160691272,0.26171496,703.6,701.78,0.28498959]
[1735160691474,1.05740999,703.39,701.78,0.28498959]
[1735160691674,0.26171496,703.38,701.78,0.28498959]
[1735160692975,0.2617822,703.37,701.78,0.28498959]
[1735160693171,0.26178162,703.37,701.78,0.28498959]
[1735160693376,0.64178666,703.62,701.78,0.28498959]
[1735160693377,0.26178162,703.36,701.78,0.28498959]
[1735160693575,0.26178162,703.35,701.78,0.28498959]
[1735160693770,0.26178162,703.44,701.78,0.28498959]
[1735160693977,0.26178162,703.43,701.78,0.28498959]
[1735160694177,0.26178162,703.44,701.78,0.28498959]
[1735160694377,0.26178162,703.43,701.78,0.28498959]
[1735160694577,0.26178162,703.42,701.78,0.28498959]
[1735160694876,0.26178162,703.41,701.78,0.28498959]
[1735160695172,0.26178162,703.4,701.78,0.28498959]
[1735160695378,0.26178162,703.39,701.78,0.28498959]
[1735160695576,0.26178162,703.38,701.78,0.28498959]
[1735160695777,0.26178171,703.37,701.78,0.28498959]
[1735160696080,0.26178171,703.36,701.78,0.28498959]
[1735160696278,0.26178171,703.35,701.78,0.28498959]
[1735160696475,0.26178171,703.34,701.78,0.28498959]
[1735160696672,0.26178171,703.5,701.78,0.28498959]
[1735160696877,0.26178171,703.49,701.78,0.28498959]
[1735160697080,0.26178171,703.48,701.78,0.28498959]
[1735160697281,0.26178171,703.47,700.97,1.06518007]
[1735160697579,0.26178171,703.46,700.97,1.06518007]
[1735160697780,0.26178171,703.45,700.81,1.06518007]
[1735160697976,0.26178171,703.44,700.81,1.06518007]
[1735160698176,0.26178171,703.43,700.81,1.06518007]
[1735160698374,1.05740999,703.52,700.81,1.06518007]
[1735160698680,0.26182771,703.51,700.81,1.06518007]
[1735160698881,0.26182771,703.51,700.59,1.06518007]
[1735160699072,0.26182771,703.5,700.73,0.28541663]
[1735160699279,0.26183757,703.49,700.73,0.28541663]
[1735160699481,0.26183757,703.48,700.73,0.28541663]
[1735160699678,0.26183757,703.47,700.73,0.28541663]
[1735160699879,0.26183757,703.6,700.73,0.28541663]
[1735160700081,0.26183757,703.59,700.73,0.28541663]
[1735160700277,0.26183757,703.58,700.73,0.28541663]
[1735160700481,0.26183757,703.57,700.73,0.28541663]
[1735160700678,0.26183757,703.56,700.73,0.28541663]
[1735160700882,0.26183757,703.55,700.73,0.28541663]
[1735160701079,0.26183757,703.54,700.73,0.28541663]
[1735160701282,0.26183757,703.53,700.73,0.28541663]
[1735160701485,1.05740999,703.51,700.73,0.28541663]
[1735160701687,0.26183757,703.5,700.73,0.28541663]
[1735160701988,0.26183757,703.49,700.73,0.28541663]
[1735160702287,0.26183757,703.48,700.73,0.28541663]
[1735160702488,1.05740999,703.44,700.73,0.28541663]
[1735160702988,0.26194389,703.43,700.73,0.28541663]
[1735160703187,0.26194389,703.42,700.73,0.28541663]
[1735160703384,1.05740999,703.34,700.73,0.28541663]
[1735160703587,0.26194389,703.33,700.73,0.28541663]
[1735160703788,0.26194389,703.32,700.73,0.28541663]
[1735160704089,0.26194389,703.31,700.73,0.28541663]
[1735160704285,0.26194389,703.3,700.73,0.28541663]
[1735160704483,0.26194389,703.29,700.73,0.28541663]
[1735160704686,0.26194389,703.28,700.73,0.28541663]
[1735160704885,0.26194389,703.27,700.73,0.28541663]
[1735160705189,0.26194389,703.26,700.73,0.28541663]
[1735160705486,0.2619881,703.25,700.73,0.28541663]
[1735160705688,0.2619881,703.24,700.73,0.28541663]
[1735160705885,0.2619881,703.23,700.73,0.28541663]
[1735160706084,0.2619881,703.22,700.73,0.28541663]
[1735160706282,0.2619928,703.21,700.73,0.28541663]
[1735160706482,0.2619928,703.2,700.73,0.28541663]
[1735160706684,0.2619928,703.19,700.73,0.28541663]
[1735160706881,0.2619928,703.18,700.73,0.28541663]
[1735160707086,0.2619928,703.17,700.73,0.28541663]
[1735160707287,0.2619928,703.16,700.73,0.28541663]
[1735160707487,0.2619928,703.15,700.73,0.28541663]
[1735160707690,0.2619928,703.14,700.73,0.28541663]
[1735160707889,0.2619928,703.13,700.73,0.28541663]
[1735160708090,1.05740999,703.52,700.73,0.28541663]
[1735160708291,2.50329701,703.78,700.73,0.28541663]
[1735160708292,0.26199239,703.51,700.73,0.28541663]
[1735160708492,0.26199239,703.5,700.73,0.28541663]
[1735160708792,0.26199239,703.49,700.73,0.28541663]
[1735160708991,0.26199239,703.48,700.73,0.28541663]
[1735160709293,0.26199239,703.47,700.73,0.28541663]
[1735160709789,0.26199239,703.46,700.73,0.28541663]
[1735160709990,1.05740999,703.55,700.73,0.28541663]
[1735160709991,0.26199239,703.45,700.73,0.28541663]
[1735160710587,1.05740999,703.43,700.73,0.28541663]
[1735160711187,0.26195292,703.42,700.73,0.28541663]
[1735160711692,0.26195292,703.41,700.73,0.28541663]
[1735160711888,0.26195292,703.4,700.73,0.28541663]
[1735160712087,0.26195637,703.4,700.73,0.28541663]
[1735160712292,0.26195637,703.39,700.73,0.28541663]
[1735160712492,0.26195637,703.38,700.73,0.28541663]
[1735160712795,1.05740999,703.35,700.73,0.28541663]
[1735160712987,0.26195637,703.34,700.73,0.28541663]
[1735160713192,0.26195637,703.33,700.73,0.28541663]
[1735160713387,0.26197411,703.32,700.73,0.28541663]
[1735160713590,0.26197411,703.31,700.73,0.28541663]
[1735160713786,0.26197411,703.3,700.73,0.28541663]
[1735160713991,0.26197411,703.29,700.73,0.28541663]
[1735160714192,0.26195785,703.28,700.73,0.28541663]
[1735160714390,0.26195785,703.27,700.73,0.28541663]
[1735160714593,0.26195785,703.26,700.73,0.28541663]
[1735160714792,0.26195785,703.25,700.73,0.28541663]
[1735160714991,0.26195785,703.24,700.73,0.28541663]
[1735160715190,0.26195785,703.23,700.73,0.28541663]
[1735160715397,0.26195785,703.22,700.73,0.28541663]
[1735160715693,0.26195785,703.21,700.73,0.28541663]
[1735160715894,0.26195785,703.2,700.73,0.28541663]
[1735160716091,0.26196976,703.19,700.73,0.28541663]
[1735160716293,1.05740999,703.2,700.73,0.28541663]
[1735160716294,0.26196976,703.18,700.73,0.28541663]
[1735160716489,0.26196976,703.17,700.73,0.28541663]
[1735160716689,0.26196976,703.16,700.73,0.28541663]
[1735160716892,0.26196976,703.15,700.73,0.28541663]
[1735160717089,0.26196976,703.14,700.73,0.28541663]
[1735160717296,0.26196976,703.13,700.73,0.28541663]
[1735160717496,0.26196976,703.12,700.73,0.28541663]
[1735160717696,0.26196976,703.11,700.73,0.28541663]
[1735160717899,0.26196976,703.1,700.73,0.28541663]
[1735160718095,0.26196976,703.09,700.73,0.28541663]
[1735160718295,0.26196976,703.08,700.73,0.28541663]
[1735160718497,0.26196976,703.07,700.73,0.28541663]
[1735160718793,0.26195276,703.06,700.73,0.28541663]
[1735160718992,0.26195276,703.05,700.73,0.28541663]
[1735160719191,0.26195276,703.04,700.73,0.28541663]
[1735160719396,0.26195276,703.03,700.73,0.28541663]
[1735160719597,0.26195276,703.02,700.73,0.28541663]
[1735160719795,0.26195276,703.01,700.73,0.28541663]
[1735160719999,0.26195276,703.0,700.73,0.28541663]
[1735160720196,0.26195276,702.99,700.73,0.28541663]
[1735160720391,1.05740999,703.11,700.73,0.28541663]
[1735160720392,0.26195276,702.98,700.73,0.28541663]
[1735160720590,0.26195276,702.97,700.73,0.28541663]
[1735160720797,0.26195276,702.96,700.73,0.28541663]
[1735160721012,0.26195276,702.95,700.73,0.28541663]
[1735160721200,1.05740999,702.86,700.73,0.28541663]
[1735160721507,0.26209528,702.85,700.73,0.28541663]
[1735160721696,0.26209528,702.84,700.73,0.28541663]
[1735160721999,0.90330725,702.83,700.73,0.28541663]
[1735160722200,1.05740999,702.61,700.73,0.28541663]
[1735160722394,0.26210648,702.6,700.73,0.28541663]
[1735160722599,0.26210648,702.59,700.73,0.28541663]
[1735160722802,1.05740999,702.61,700.73,0.28541663]
[1735160722803,0.26210648,702.58,700.73,0.28541663]
[1735160723002,1.05740999,702.61,700.73,0.28541663]
[1735160723003,0.26210648,702.57,700.73,0.28541663]
[1735160723299,1.05740999,702.53,700.73,0.28541663]
[1735160723500,0.26210648,702.52,700.73,0.28541663]
[1735160723693,0.26210648,702.51,700.73,0.28541663]
[1735160723895,0.26210648,702.5,700.73,0.28541663]
[1735160724097,0.26211187,702.49,700.73,0.28541663]
[1735160724296,0.26211187,702.48,700.73,0.28541663]
[1735160724601,0.26211187,702.47,700.73,0.28541663]
[1735160724797,0.26211187,702.46,700.73,0.28541663]
[1735160725002,0.26211187,702.45,700.73,0.28541663]
[1735160725202,0.26211187,702.44,700.73,0.28541663]
[1735160725497,0.26211187,702.43,700.73,0.28541663]
[1735160725802,0.26211187,702.42,700.73,0.28541663]
[1735160726003,0.26211187,702.41,700.73,0.28541663]
[1735160726305,0.26211187,702.4,700.73,0.28541663]
[1735160726603,0.26211187,702.39,700.73,0.28541663]
[1735160726796,1.05740999,702.54,700.73,0.28541663]
[1735160726997,0.2620756,702.53,700.73,0.28541663]
[1735160727201,0.2620756,702.52,700.73,0.28541663]
[1735160727401,0.2620756,702.51,700.73,0.28541663]
[1735160727601,0.2620756,702.5,700.73,0.28541663]
[1735160727803,0.2620756,702.49,700.73,0.28541663]
[1735160728003,0.2620756,702.48,700.73,0.28541663]
[1735160728200,0.2620756,702.47,700.73,0.28541663]
[1735160728504,1.05740999,702.55,700.73,0.28541663]
[1735160728505,0.2620756,702.46,700.73,0.28541663]
[1735160728708,0.2620756,702.45,700.73,0.28541663]
[1735160728905,0.2620756,702.44,700.73,0.28541663]
[1735160729105,0.2620756,702.43,700.73,0.28541663]
[1735160729305,0.2620756,702.42,700.73,0.28541663]
[1735160729499,0.26209199,702.41,700.73,0.28541663]
[1735160729807,0.26209199,702.4,700.73,0.28541663]
[1735160730002,2.15887873,702.84,700.73,0.28541663]
[1735160730003,0.26209199,702.39,700.73,0.28541663]
[1735160730209,1.05740999,702.46,700.73,0.28541663]
[1735160730406,0.26208525,702.45,700.73,0.28541663]
[1735160730606,0.26208525,702.44,700.73,0.28541663]
[1735160730802,1.05740999,702.42,700.73,0.28541663]
[1735160731010,0.26208525,702.41,700.73,0.28541663]
[1735160731210,0.26208525,702.4,700.73,0.28541663]
[1735160731407,0.26208525,702.39,700.73,0.28541663]
[1735160731607,0.26208525,702.38,700.73,0.28541663]
[1735160731811,0.26208525,702.37,700.73,0.28541663]
[1735160732012,0.26208525,702.36,700.73,0.28541663]
[1735160732206,0.26208525,702.56,700.73,0.28541663]
[1735160732410,1.05740999,702.44,700.73,0.28541663]
[1735160732611,0.26208525,702.43,700.73,0.28541663]
[1735160732812,0.26208525,702.42,700.73,0.28541663]
[1735160733013,0.26208525,702.41,700.73,0.28541663]
[1735160733214,1.05740999,702.23,700.73,0.28541663]
[1735160733418,0.26208525,702.22,700.73,0.28541663]
[1735160733613,0.26208525,702.21,700.73,0.28541663]
[1735160733813,0.26208525,702.2,700.73,0.28541663]
[1735160734014,0.26208525,702.19,700.73,0.28541663]
[1735160734214,1.05740999,702.16,700.73,0.28541663]
[1735160734413,0.26208525,702.15,700.73,0.28541663]
[1735160734608,0.26208525,702.14,700.73,0.28541663]
[1735160734813,1.05740999,702.16,700.73,0.28541663]
[1735160735015,1.05740999,702.14,700.73,0.28541663]
[1735160735214,0.26213487,702.13,700.73,0.28541663]
[1735160735416,0.26213487,702.12,700.73,0.28541663]
[1735160735710,0.26213487,702.11,700.73,0.28541663]
[1735160735914,0.26213487,702.1,700.73,0.28541663]
[1735160736115,0.26213487,702.09,700.73,0.28541663]
[1735160736309,0.26213487,702.08,700.73,0.28541663]
[1735160736512,0.26213487,702.07,700.73,0.28541663]
[1735160736712,0.26213487,702.06,700.73,0.28541663]
[1735160736909,0.26213487,702.05,700.73,0.28541663]
[1735160737113,0.26213487,702.04,700.73,0.28541663]
[1735160737315,1.05740999,702.13,700.73,0.28541663]
[1735160737316,0.26213487,702.03,700.73,0.28541663]
[1735160737519,0.26218842,702.02,700.73,0.28541663]
[1735160737815,0.26218842,702.01,700.73,0.28541663]
[1735160738016,0.26218842,702.0,700.73,0.28541663]
[1735160738217,0.26218842,701.99,700.73,0.28541663]
[1735160738418,0.26219115,701.99,700.73,0.28541663]
[1735160738716,0.26219115,701.98,700.73,0.28541663]
[1735160738914,1.05740999,702.0,700.73,0.28541663]
[1735160738915,0.26219115,701.97,700.73,0.28541663]
[1735160739114,0.26219115,701.96,700.73,0.28541663]
[1735160739315,0.26219115,701.95,700.73,0.28541663]
[1735160739515,0.64081748,702.32,700.73,0.28541663]
[1735160739516,0.26219115,701.94,700.73,0.28541663]
[1735160739815,0.26219115,701.93,700.73,0.28541663]
[1735160740017,0.26219115,701.92,700.73,0.28541663]
[1735160740217,0.26219115,701.91,700.73,0.28541663]
[1735160740517,0.26219115,701.9,700.73,0.28541663]
[1735160740716,0.26219115,701.89,700.73,0.28541663]
[1735160740917,0.26219115,701.88,700.73,0.28541663]
[1735160741212,0.26219115,701.87,700.73,0.28541663]
[1735160741419,0.26219115,701.86,700.73,0.28541663]
[1735160741617,0.26219115,701.85,700.73,0.28541663]
[1735160741918,0.26219115,701.84,700.73,0.28541663]
[1735160742115,0.26219115,701.83,700.73,0.28541663]
[1735160742312,0.26219115,701.82,700.73,0.28541663]
[1735160742511,0.26219115,701.81,700.73,0.28541663]
[1735160742710,0.26219115,701.8,700.73,0.28541663]
[1735160742911,0.26224861,701.79,700.73,0.28541663]
[1735160743117,0.26224861,701.78,700.73,0.28541663]
[1735160743319,0.26224861,701.77,700.73,0.28541663]
[1735160743520,0.26224861,701.76,700.73,0.28541663]
[1735160743719,0.26224861,701.75,700.73,0.28541663]
[1735160743919,0.64052966,702.21,700.73,0.28541663]
[1735160743920,0.26224861,701.74,700.73,0.28541663]
[1735160744218,0.26224861,701.73,700.73,0.28541663]
[1735160744518,0.26224861,701.72,700.73,0.28541663]
[1735160744711,0.26224861,701.71,700.73,0.28541663]
[1735160744916,0.26224861,701.7,700.73,0.28541663]
[1735160745115,0.26224861,701.69,699.09,1.06518007]
[1735160745318,0.26224861,701.68,699.09,1.06518007]
[1735160745519,0.26225641,701.67,699.09,1.06518007]
[1735160745820,0.26225641,701.66,699.09,1.06518007]
[1735160746021,0.26225641,701.65,699.09,1.06518007]
[1735160746220,0.26225641,701.64,699.09,1.06518007]
[1735160746419,0.26223785,701.64,699.21,0.28603709]
[1735160746616,1.05740999,702.15,699.21,0.28603709]
[1735160746816,0.26223803,702.14,699.21,0.28603709]
[1735160747015,0.26223803,702.13,699.21,0.28603709]
[1735160747218,0.26223803,702.12,699.21,0.28603709]
[1735160747417,0.26223803,702.11,699.21,0.28603709]
[1735160747619,0.26223803,702.1,699.21,0.28603709]
[1735160747816,0.26223803,702.09,699.21,0.28603709]
[1735160748023,0.26223803,702.08,699.21,0.28603709]
[1735160748226,0.26223803,702.07,699.21,0.28603709]
[1735160748422,0.26224392,702.06,699.21,0.28603709]
[1735160748618,0.26224392,702.05,699.21,0.28603709]
[1735160748918,0.26224392,702.04,699.21,0.28603709]
[1735160749121,0.26224392,702.03,699.21,0.28603709]
[1735160749323,0.26224392,702.02,699.21,0.28603709]
[1735160749519,0.26224392,702.01,699.21,0.28603709]
[1735160749721,0.26224392,702.0,699.21,0.28603709]
[1735160749924,0.26224392,701.99,699.21,0.28603709]
[1735160750125,0.26224392,701.98,699.21,0.28603709]
[1735160750326,0.26224392,701.97,699.21,0.28603709]
[1735160750521,0.26224392,701.96,699.21,0.28603709]
[1735160750724,0.26224392,701.95,699.21,0.28603709]
[1735160750928,0.26224392,701.94,699.21,0.28603709]
[1735160751121,0.26224392,702.25,699.21,0.28603709]
[1735160751427,0.26224392,702.24,699.21,0.28603709]
[1735160751726,0.26224392,702.23,699.21,0.28603709]
[1735160751928,2.15887873,702.66,699.21,0.28603709]
[1735160751929,0.26224392,702.22,699.21,0.28603709]
[1735160752129,0.26224392,702.21,699.21,0.28603709]
[1735160752329,0.26224392,702.2,699.21,0.28603709]
[1735160752530,0.26224392,702.19,699.21,0.28603709]
[1735160752828,1.05740999,702.29,699.21,0.28603709]
[1735160752829,0.26224392,702.18,699.21,0.28603709]
[1735160753029,0.26230274,702.17,699.21,0.28603709]
[1735160753229,1.05740999,702.27,699.21,0.28603709]
[1735160753230,0.26230274,702.26,699.21,0.28603709]
[1735160753529,0.26230274,702.25,699.21,0.28603709]
[1735160753729,0.26230274,702.24,699.21,0.28603709]
[1735160754028,1.05740999,702.21,699.21,0.28603709]
[1735160754229,0.26230274,702.2,699.21,0.28603709]
[1735160754429,0.26230274,702.19,699.21,0.28603709]
[1735160754631,0.26230274,702.18,699.21,0.28603709]
[1735160754831,1.05740999,702.16,699.21,0.28603709]
[1735160755032,0.26230274,702.15,699.21,0.28603709]
[1735160755533,0.26230274,702.14,699.21,0.28603709]
[1735160755733,0.26230274,702.13,699.21,0.28603709]
[1735160756034,0.26230274,702.12,699.21,0.28603709]
[1735160756332,0.26230274,702.11,699.21,0.28603709]
[1735160756834,1.05740999,702.05,699.21,0.28603709]
[1735160757034,0.26230274,702.04,699.21,0.28603709]
[1735160757227,0.26230274,702.03,699.21,0.28603709]
[1735160757431,0.26230274,702.02,699.21,0.28603709]
[1735160757630,0.26230274,702.01,699.21,0.28603709]
[1735160757830,0.26230274,702.0,699.21,0.28603709]
[1735160758029,0.26230274,701.99,699.21,0.28603709]
[1735160758226,0.26230274,701.98,699.21,0.28603709]
[1735160758426,0.26230274,701.97,699.21,0.28603709]
[1735160758632,0.26230274,701.96,699.21,0.28603709]
[1735160758831,0.26230274,701.95,699.21,0.28603709]
[1735160759030,1.05740999,702.06,699.21,0.28603709]
[1735160759333,1.05740999,701.82,699.21,0.28603709]
[1735160759527,0.26237886,701.81,699.21,0.28603709]
[1735160759732,0.26237886,701.8,699.21,0.28603709]
[1735160759928,0.26237886,701.79,699.21,0.28603709]
[1735160760133,0.26237886,701.78,699.21,0.28603709]
[1735160760328,0.26237886,701.77,699.21,0.28603709]
[1735160760528,1.05740999,701.88,699.21,0.28603709]
[1735160760529,0.26236443,701.76,699.21,0.28603709]
[1735160760733,0.26236443,701.75,699.21,0.28603709]
[1735160760935,0.26236443,701.74,699.21,0.28603709]
[1735160761135,0.26236443,701.73,699.21,0.28603709]
[1735160761333,0.26236443,701.72,699.21,0.28603709]
[1735160761534,0.26236443,701.71,699.21,0.28603709]
[1735160761730,0.26236443,701.89,699.21,0.28603709]
[1735160761933,1.31974292,701.88,699.21,0.28603709]
[1735160762334,0.26233293,701.87,699.21,0.28603709]
[1735160763137,0.26233293,701.86,699.21,0.28603709]
[1735160763437,0.26233293,701.85,699.21,0.28603709]
[1735160763641,0.26231332,701.84,699.21,0.28603709]
[1735160763838,0.26231332,702.06,699.21,0.28603709]
[1735160764133,0.26231332,702.05,699.21,0.28603709]
[1735160764335,0.26231332,702.04,699.21,0.28603709]
[1735160764533,1.31972331,702.03,699.23,1.06518007]
[1735160764731,0.26231332,702.02,699.23,1.06518007]
[1735160764937,0.26231332,702.01,699.23,1.06518007]
[1735160765138,0.26231332,702.0,699.23,1.06518007]
[1735160765445,0.26231332,701.99,699.24,1.06518007]
[1735160765734,0.26231332,701.98,699.24,1.06518007]
[1735160765940,0.26231332,701.97,699.24,1.06518007]
[1735160766141,1.05740999,702.02,699.26,1.06518007]
[1735160766436,0.26230319,702.01,699.26,1.06518007]
[1735160766740,0.26230319,702.0,699.26,1.06518007]
[1735160766935,0.26230195,701.99,699.26,1.06518007]
[1735160767147,1.31971194,701.98,699.33,1.06518007]
[1735160767439,0.26230195,701.97,699.33,1.06518007]
[1735160767935,0.26230195,701.97,699.21,0.28603709]
[1735160768141,0.26230195,701.96,699.21,0.28603709]
[1735160768342,0.26230195,701.95,699.21,0.28603709]
[1735160768643,0.26230195,701.94,699.21,0.28603709]
[1735160769044,0.26230195,701.93,699.21,0.28603709]
[1735160769343,0.26230195,701.92,699.21,0.28603709]
[1735160769551,0.26230195,702.31,699.21,0.28603709]
[1735160769745,0.26230195,701.91,699.21,0.28603709]
[1735160770043,0.26230195,701.9,699.21,0.28603709]
[1735160770243,0.26230195,702.29,699.21,0.28603709]
[1735160770439,0.26230195,701.89,699.21,0.28603709]
[1735160770744,0.26230195,701.88,699.21,0.28603709]
[1735160770946,0.26230195,702.29,699.21,0.28603709]
[1735160771244,1.05740999,702.3,699.21,0.28603709]
[1735160771245,0.26230195,702.28,699.21,0.28603709]
[1735160771443,1.05740999,702.3,699.21,0.28603709]
[1735160771644,0.2622662,702.27,699.21,0.28603709]
[1735160771943,0.2622662,702.26,699.21,0.28603709]
[1735160772244,0.2622662,702.32,699.21,0.28603709]
[1735160772546,0.2622662,702.31,699.21,0.28603709]
[1735160773146,1.31967619,702.31,699.21,0.28603709]
[1735160773340,0.2622662,702.3,699.21,0.28603709]
[1735160773945,0.2622662,702.29,699.21,0.28603709]